bitfinex-derivatives/quotes_SOLF0:USTF0_20250821
["timestamp","ask_amount","ask_price","bid_price","bid_amount"]
[1755770863158,0.94075666,185.09,184.96,5.4067]
[1755770863352,2.34834366,185.02,184.96,5.4067]
[1755770863855,2.34834366,185.02,184.94,5.4072]
[1755770865453,2.34834366,185.0,184.91,2.34834366]
[1755770866359,2.34834366,185.0,184.93,5.4075]
[1755770866560,2.34834366,185.0,184.91,2.34834366]
[1755770866763,2.34834366,185.02,184.91,2.34834366]
[1755770867064,2.34834366,185.02,184.93,2.34834366]
[1755770867560,2.34834366,185.04,184.95,2.34834366]
[1755770868058,2.34834366,185.05,184.95,2.34834366]
[1755770868355,2.34834366,185.07,184.97,2.34834366]
[1755770869062,2.34834366,185.07,184.95,2.34834366]
[1755770869752,2.34834366,185.07,184.99,5.4056]
[1755770870162,2.34834366,185.07,184.95,2.34834366]
[1755770870364,2.34834366,185.07,184.97,2.34834366]
[1755770870667,2.34834366,185.07,185.0,5.4054]
[1755770871058,0.94075666,185.09,184.97,2.34834366]
[1755770871059,2.34834366,185.08,184.97,2.34834366]
[1755770871265,365.92834366,185.1,184.99,2.34834366]
[1755770871463,365.92834366,185.1,184.91,10.8163]
[1755770871464,365.92834366,185.1,184.93,4.48336077]
[1755770871760,2.34834366,185.08,184.97,2.34834366]
[1755770872554,2.34834366,185.08,185.0,5.4056]
[1755770874163,2.34834366,185.08,185.01,5.4053]
[1755770875862,2.34834366,185.08,185.0,5.4056]
[1755770876654,2.34834366,185.08,184.99,5.4058]
[1755770879067,2.34834366,185.08,185.0,5.4055]
[1755770880071,2.34834366,185.08,185.01,5.4052]
[1755770880269,2.34834366,185.08,184.97,2.34834366]
[1755770881069,2.34834366,185.06,184.95,2.34834366]
[1755770881269,363.58,185.1,184.95,2.34834366]
[1755770881270,2.34834366,185.04,184.95,2.34834366]
[1755770881571,2.34834366,185.04,184.92,2.34834366]
[1755770881768,2.34834366,185.04,184.95,5.4069]
[1755770882170,2.34834366,185.04,184.94,2.34834366]
[1755770882364,133.2,185.05,184.94,2.34834366]
[1755770882973,133.2,185.05,184.95,2.34834366]
[1755770883370,2.34834366,185.07,185.01,5.4052]
[1755770883571,2.34834366,185.07,184.92,4.48445515]
[1755770883771,497.80076938,185.1,184.95,2.34834366]
[1755770883772,2.34834366,185.06,184.95,2.34834366]
[1755770883971,2.34834366,185.06,185.0,5.4056]
[1755770885770,2.34834366,185.06,185.01,5.4053]
[1755770886473,2.34834366,185.06,185.0,5.4055]
[1755770886668,2.34834366,185.06,184.97,2.34834366]
[1755770887178,2.34834366,185.07,184.97,2.34834366]
[1755770887375,2.34834366,185.05,184.95,2.34834366]
[1755770887676,2.34834366,185.03,184.93,2.34834366]
[1755770888777,2.34834366,185.05,184.93,2.34834366]
[1755770888978,2.34834366,185.05,184.95,2.34834366]
[1755770889174,2.34834366,185.05,184.96,5.4065]
[1755770889578,2.34834366,185.05,184.94,2.34834366]
[1755770891182,2.34834366,185.05,184.99,5.4059]
[1755770892180,2.34834366,185.05,184.98,5.4061]
[1755770892581,2.34834366,185.05,184.94,2.34834366]
[1755770893179,2.34834366,185.05,184.97,5.4064]
[1755770893575,2.34834366,185.05,184.98,5.406]
[1755770893880,2.34834366,185.05,184.94,2.34834366]
[1755770894081,2.34834366,185.05,184.94,6.84306034]
[1755770895172,497.80076938,185.1,184.98,5.406]
[1755770895372,2.34834366,185.05,184.98,5.406]
[1755770895676,2.34834366,185.05,184.94,6.84306034]
[1755770895881,2.34834366,185.07,185.0,5.4054]
[1755770896782,2.34834366,185.07,184.95,4.49471668]
[1755770897086,2.34834366,185.07,184.94,6.84306034]
[1755770897487,2.34834366,185.07,184.98,5.4062]
[1755770897886,2.34834366,185.07,184.95,4.49471668]
[1755770898089,2.34834366,185.07,185.01,5.4053]
[1755770898584,2.34834366,185.09,184.99,2.34834366]
[1755770899581,2.34834366,185.07,184.96,4.49471668]
[1755770899786,2.34834366,185.07,184.99,5.4058]
[1755770899989,2.34834366,185.07,184.96,6.84306034]
[1755770900180,2.34834366,185.07,184.98,5.406]
[1755770900379,134.22079481,185.1,184.96,2.34834366]
[1755770900580,2.34834366,185.09,184.98,2.34834366]
[1755770900781,2.34834366,185.09,185.0,2.34834366]
[1755770901089,133.28,185.1,185.0,2.34834366]
[1755770901787,133.28,185.1,185.02,5.4048]
[1755770902280,133.28,185.1,185.03,5.4046]
[1755770903988,133.28,185.1,185.02,5.4049]
[1755770905084,133.28,185.1,185.03,5.4046]
[1755770905490,2.34834366,185.09,184.99,2.34834366]
[1755770906288,133.28,185.1,184.99,2.34834366]
[1755770906681,133.28,185.1,185.01,2.34834366]
[1755770906896,133.28,185.1,185.05,5.4041]
[1755770907085,121.18947418,185.11,185.03,2.34834366]
[1755770907586,121.18947418,185.11,185.06,5.4038]
[1755770908287,121.18947418,185.11,185.05,5.404]
[1755770908492,121.18947418,185.11,185.03,2.34834366]
[1755770909392,121.18947418,185.11,185.05,5.404]
[1755770909885,121.18947418,185.11,185.03,2.34834366]
[1755770909886,121.18947418,185.11,185.04,5.4042]
[1755770910082,121.18947418,185.11,185.03,2.34834366]
[1755770910783,121.18947418,185.11,185.05,5.404]
[1755770910988,121.18947418,185.11,185.03,2.34834366]
[1755770911492,2.34834366,185.1,185.01,4.49471668]
[1755770911692,2.34834366,185.08,184.98,4.49471668]
[1755770911896,2.34834366,185.08,184.97,4.49471668]
[1755770912897,133.18,185.09,185.0,2.34834366]
[1755770913084,133.18,185.09,185.03,5.4045]
[1755770913290,133.18,185.09,185.0,6.84306034]
[1755770913592,133.18,185.09,185.0,2.34834366]
[1755770913895,133.18,185.09,185.03,5.4047]
[1755770914201,133.18,185.09,185.0,2.34834366]
[1755770914394,133.18,185.09,185.04,5.4044]
[1755770914794,133.18,185.09,185.0,2.34834366]
[1755770914997,2.34834366,185.14,185.04,2.34834366]
[1755770915197,133.22,185.14,185.04,2.34834366]
[1755770916394,133.22,185.14,185.08,5.4031]
[1755770918095,133.22,185.14,185.07,5.4034]
[1755770920099,133.22,185.14,185.08,5.4032]
[1755770920697,133.22,185.14,185.07,5.4034]
[1755770920897,133.22,185.14,185.04,2.34834366]
[1755770921296,133.22,185.14,185.06,2.34834366]
[1755770923801,133.22,185.14,185.07,5.4035]
[1755770925602,133.22,185.14,185.08,5.4032]
[1755770927402,133.22,185.14,185.06,2.34834366]
[1755770928004,2.34834366,185.17,185.08,5.4032]
[1755770928199,2.34834366,185.17,185.06,2.34834366]
[1755770929099,0.16,185.16,185.06,5.15834366]
[1755770929308,2.34834366,185.15,185.06,5.15834366]
[1755770929603,2.34834366,185.15,185.0,6.00789852]
[1755770929604,0.16,185.1,185.02,2.81]
[1755770929800,0.16,185.1,185.03,5.4046]
[1755770930306,0.16,185.1,185.02,2.81]
[1755770930498,0.16,185.1,185.04,5.4042]
[1755770931005,0.16,185.13,185.07,5.4033]
[1755770931409,0.16,185.13,185.06,2.81]
[1755770932107,0.16,185.12,185.08,8.2132]
[1755770933601,0.16,185.12,185.09,5.403]
[1755770933807,0.14,185.15,185.09,8.213]
[1755770934007,0.14,185.15,185.09,2.81]
[1755770934705,0.14,185.15,185.12,2.81]
[1755770934907,135.62834366,185.18,185.12,2.81]
[1755770935210,133.28,185.18,185.12,2.81]
[1755770936904,133.28,185.18,185.12,8.212]
[1755770937204,0.14,185.18,185.12,2.81]
[1755770937805,0.14,185.18,185.14,2.81]
[1755770939008,0.14,185.18,185.14,8.2113]
[1755770939209,0.14,185.18,185.15,2.81]
[1755770939504,2.48834366,185.22,185.16,5.4009]
[1755770939906,0.14,185.21,185.1,2.34834366]
[1755770940107,0.14,185.21,185.12,5.402]
[1755770940302,0.14,185.21,185.11,2.81]
[1755770941312,0.14,185.21,185.14,2.81]
[1755770942011,0.14,185.21,185.14,8.2113]
[1755770942212,0.14,185.21,185.14,2.81]
[1755770943413,0.14,185.21,185.15,5.4012]
[1755770943616,0.14,185.21,185.14,2.81]
[1755770944115,0.14,185.21,185.15,5.4012]
[1755770945312,0.14,185.21,185.13,2.81]
[1755770946212,2.34834366,185.23,185.17,8.2105]
[1755770946415,135.48834366,185.24,185.17,8.2105]
[1755770947012,133.14,185.24,185.17,8.2105]
[1755770949316,133.14,185.24,185.17,2.81]
[1755770950109,0.14,185.25,185.17,2.81]
[1755770950312,0.14,185.35,185.24,2.81]
[1755770950512,2.34834366,185.35,185.24,2.81]
[1755770950814,0.14,185.32,185.24,2.81]
[1755770951518,133.38,185.36,185.24,2.81]
[1755770951519,2.34834366,185.3,185.24,2.81]
[1755770951718,0.14,185.28,185.24,2.81]
[1755770952311,0.14,185.27,185.21,5.3994]
[1755770952514,0.14,185.27,185.2,2.81]
[1755770952913,0.14,185.27,185.2,8.2097]
[1755770953316,0.14,185.27,185.21,5.3994]
[1755770954519,0.14,185.27,185.22,5.3991]
[1755770954718,0.14,185.27,185.22,8.2091]
[1755770954921,0.14,185.27,185.22,5.3991]
[1755770955119,0.14,185.27,185.23,2.81]
[1755770955320,0.14,185.26,185.21,2.81]
[1755770955818,0.14,185.26,185.18,2.34834366]
[1755770956014,0.14,185.26,185.22,2.81]
[1755770957010,0.14,185.26,185.21,5.3995]
[1755770957215,2.34834366,185.28,185.22,2.81]
[1755770957622,2.34834366,185.28,185.22,8.2091]
[1755770958616,2.34834366,185.28,185.22,2.81]
[1755770959017,0.15,185.27,185.18,2.81]
[1755770959214,0.15,185.27,185.2,2.81]
[1755770960520,0.15,185.27,185.21,5.3992]
[1755770960722,0.15,185.27,185.23,2.81]
[1755770960917,0.15,185.27,185.24,2.81]
[1755770961310,2.34834366,185.28,185.19,2.34834366]
[1755770961517,2.34834366,185.3,185.25,2.81]
[1755770961819,0.15,185.29,185.25,2.81]
[1755770962215,0.15,185.28,185.25,2.81]
[1755770962820,0.15,185.29,185.25,2.81]
[1755770965030,0.15,185.29,185.25,5.3983]
[1755770965326,0.15,185.29,185.26,2.88]
[1755770967326,2.49834366,185.29,185.26,2.88]
[1755770967526,0.15,185.28,185.24,2.88]
[1755770967829,2.34834366,185.25,185.2,2.88]
[1755770968029,2.34834366,185.25,185.19,2.88]
[1755770970534,2.49834366,185.23,185.15,2.88]
[1755770971034,2.49834366,185.23,185.17,2.88]
[1755770975841,0.15,185.2,185.11,2.88]
[1755770976948,2.34834366,185.21,185.12,2.88]
[1755770977149,2.34834366,185.24,185.14,2.88]
[1755770977345,2.34834366,185.24,185.15,5.401]
[1755770977544,2.34834366,185.24,185.16,2.88]
[1755770977746,2.34834366,185.22,185.16,2.88]
[1755770979248,0.15,185.21,185.16,2.88]
[1755770979448,0.15,185.19,185.16,2.88]
[1755770980352,2.34834366,185.2,185.09,6.84306034]
[1755770980548,2.34834366,185.2,185.11,2.34834366]
[1755770980753,2.34834366,185.2,185.12,2.88]
[1755770980953,2.34834366,185.2,185.13,5.4017]
[1755770981152,2.34834366,185.2,185.14,2.88]
[1755770982050,2.49834366,185.2,185.14,2.88]
[1755770982255,2.49834366,185.18,185.14,2.88]
[1755770982556,2.34834366,185.18,185.15,2.88]
[1755770982754,2.34834366,185.2,185.16,2.88]
[1755770982954,2.34834366,185.2,185.18,2.88]
[1755770983648,2.49834366,185.2,185.16,2.88]
[1755770984247,2.49834366,185.2,185.16,8.2809]
[1755770984552,2.49834366,185.2,185.17,2.88]
[1755770984951,2.49834366,185.2,185.16,5.4009]
[1755770984952,2.34834366,185.2,185.18,2.88]
[1755770986250,2.49834366,185.2,185.16,2.88]
[1755770986451,0.15,185.19,185.16,2.88]
[1755770987657,0.15,185.19,185.11,2.34834366]
[1755770987859,0.15,185.19,185.13,2.88]
[1755770988058,0.15,185.19,185.13,8.2816]
[1755770988953,142.09267833,185.3,185.09,2.88]
[1755770988954,2.34834366,185.16,185.09,2.88]
[1755770989155,2.49834366,185.14,185.09,2.88]
[1755770989354,0.15,185.13,185.09,2.88]
[1755770989550,0.15,185.13,185.04,4.49471668]
[1755770989749,2.34834366,185.14,185.05,2.88]
[1755770989955,2.34834366,185.14,185.08,5.4031]
[1755770990259,2.49834366,185.14,185.1,2.88]
[1755770991157,0.15,185.13,185.1,2.88]
[1755770991361,0.15,185.12,185.06,2.88]
[1755770992256,2.34834366,185.14,185.06,2.88]
[1755770992456,2.34834366,185.14,185.05,3.01]
[1755770993463,2.34834366,185.14,185.1,3.01]
[1755770993759,2.34834366,185.16,185.06,2.34834366]
[1755770994062,135.42834366,185.2,185.15,3.01]
[1755770994264,133.08,185.2,185.17,3.01]
[1755770995959,133.23,185.2,185.17,3.01]
[1755770996964,2.34834366,185.19,185.13,3.01]
[1755770997165,2.34834366,185.17,185.1,3.01]
[1755770998961,2.34834366,185.17,185.1,8.4125]
[1755770999463,2.34834366,185.17,185.11,5.4023]
[1755771000261,0.15,185.16,185.1,3.01]
[1755771000463,2.34834366,185.13,185.07,3.01]
[1755771000657,2.34834366,185.13,185.08,5.4032]
[1755771000862,2.49834366,185.13,185.09,3.01]
[1755771001063,2.49834366,185.13,185.08,5.4032]
[1755771001359,2.34834366,185.13,185.1,3.01]
[1755771002070,2.34834366,185.13,185.1,8.4127]
[1755771002370,2.49834366,185.13,185.1,3.01]
[1755771002762,2.49834366,185.13,185.07,3.01]
[1755771003467,0.15,185.1,184.99,98.14722894]
[1755771003673,0.15,185.1,185.04,3.01]
[1755771003862,0.15,185.1,185.05,5.4039]
[1755771004062,2.34834366,185.11,185.0,2.34834366]
[1755771004063,0.15,185.09,185.06,3.01]
[1755771004265,2.49834366,185.09,185.0,3.01]
[1755771004461,2.34834366,185.09,185.05,3.01]
[1755771004662,0.15,185.08,185.0,3.01]
[1755771004978,2.34834366,185.06,185.0,3.01]
[1755771005567,2.34834366,185.06,185.0,8.4156]
[1755771006366,2.34834366,185.06,184.97,3.01]
[1755771006672,2.34834366,185.09,185.0,3.01]
[1755771006878,2.34834366,185.11,185.06,3.01]
[1755771007169,2.34834366,185.11,185.08,3.01]
[1755771007370,121.08595198,185.13,185.08,3.01]
[1755771007571,121.23595198,185.13,185.08,3.01]
[1755771008065,0.15,185.12,185.08,3.01]
[1755771008368,2.34834366,185.1,185.04,3.01]
[1755771008569,2.49834366,185.08,185.04,3.01]
[1755771008765,2.34834366,185.08,185.02,5.4048]
[1755771009069,0.15,185.07,185.03,3.01]
[1755771010166,2.34834366,185.08,185.01,5.4052]
[1755771010369,2.34834366,185.08,185.0,3.01]
[1755771010970,2.34834366,185.1,185.0,3.01]
[1755771011170,2.34834366,185.1,185.01,3.01]
[1755771011371,2.34834366,185.1,185.04,5.4042]
[1755771011674,2.34834366,185.1,185.04,3.01]
[1755771012272,135.48834366,185.12,185.03,3.01]
[1755771012474,133.14,185.12,185.03,3.01]
[1755771013577,133.14,185.12,185.07,5.4035]
[1755771013876,133.14,185.12,185.08,3.01]
[1755771015879,133.14,185.12,185.09,3.01]
[1755771017479,118.73760832,185.13,185.09,3.01]
[1755771017679,118.87760832,185.13,185.09,3.01]
[1755771018879,0.14,185.12,185.09,3.01]
[1755771019178,0.14,185.12,185.08,5.4032]
[1755771019770,0.14,185.12,185.08,8.4132]
[1755771021381,0.14,185.12,185.08,3.01]
[1755771022783,2.48834366,185.12,185.08,3.01]
[1755771022982,0.15,185.11,185.05,3.02]
[1755771023477,2.34834366,185.1,185.05,3.02]
[1755771023683,0.15,185.09,185.05,3.02]
[1755771023883,133.29,185.09,185.05,3.02]
[1755771024580,133.29,185.09,185.06,3.02]
[1755771026074,2.34834366,185.08,185.03,3.02]
[1755771026273,0.15,185.07,185.03,3.02]
[1755771026682,2.49834366,185.06,185.0,3.02]
[1755771027586,2.34834366,185.07,185.0,3.02]
[1755771028685,2.34834366,185.07,185.02,5.4049]
[1755771028884,2.49834366,185.07,185.02,8.4249]
[1755771029086,2.49834366,185.07,185.03,3.02]
[1755771029487,2.34834366,185.06,185.03,3.02]
[1755771030584,2.34834366,185.06,185.03,8.4247]
[1755771032887,2.34834366,185.06,185.04,3.02]
[1755771033186,0.15,185.07,185.04,3.02]
[1755771033387,2.49834366,185.07,185.04,3.02]
[1755771033585,2.49834366,185.07,185.04,8.4244]
[1755771034087,135.48834366,185.09,185.06,3.02]
[1755771034484,135.63834366,185.09,185.06,3.02]
[1755771034684,0.15,185.08,185.05,5.4039]
[1755771034980,0.15,185.08,185.05,8.4239]
[1755771038381,133.14,185.08,185.05,8.4239]
[1755771038786,2.34834366,185.11,185.02,2.34834366]
[1755771038982,133.14,185.11,185.03,3.02]
[1755771039292,133.14,185.11,185.07,5.4034]
[1755771039593,133.14,185.11,185.08,3.02]
[1755771041096,2.34834366,185.1,185.03,3.02]
[1755771041481,2.34834366,185.1,185.04,5.4042]
[1755771042885,2.34834366,185.1,185.05,5.4041]
[1755771043086,2.34834366,185.1,185.07,3.02]
[1755771045891,2.34834366,185.1,185.08,3.02]
[1755771046490,2.34834366,185.1,185.07,5.4034]
[1755771046691,2.34834366,185.1,185.09,3.02]
[1755771047498,2.34834366,185.1,185.06,3.02]
[1755771047696,2.49834366,185.1,185.06,3.02]
[1755771048389,2.49834366,185.1,185.07,3.02]
[1755771048996,118.73760832,185.13,185.02,6.84306034]
[1755771048997,121.23595198,185.13,185.03,3.02]
[1755771049293,118.73760832,185.13,185.1,5.4024]
[1755771049501,251.83760832,185.13,185.11,3.02]
[1755771052506,251.83760832,185.13,185.11,8.4224]
[1755771053394,251.83760832,185.13,185.11,3.02]
[1755771053594,251.98760832,185.13,185.08,2.87]
[1755771053800,251.98760832,185.13,185.06,2.87]
[1755771054106,0.15,185.11,185.06,2.87]
[1755771054299,133.23,185.1,185.06,2.87]
[1755771054499,133.23,185.1,185.07,5.4034]
[1755771054692,133.08,185.1,185.04,2.87]
[1755771054896,133.08,185.1,185.04,7.36471668]
[1755771055097,118.88760832,185.13,185.1,5.4026]
[1755771055298,133.08,185.12,185.1,8.2726]
[1755771056998,133.08,185.12,185.11,8.2724]
[1755771057497,133.08,185.12,185.11,2.87]
[1755771057703,133.08,185.12,185.09,2.87]
[1755771059604,133.08,185.12,185.1,5.4027]
[1755771061304,133.08,185.12,185.09,8.2728]
[1755771061601,133.23,185.12,185.09,8.2728]
[1755771062004,0.15,185.11,185.08,5.4031]
[1755771062903,0.15,185.09,185.03,7.36471668]
[1755771063107,133.19,185.08,185.04,2.87]
[1755771063308,133.19,185.08,185.02,4.49471668]
[1755771063503,133.19,185.08,185.05,2.87]
[1755771064006,133.19,185.08,185.02,2.87]
[1755771064403,133.19,185.08,185.05,5.4041]
[1755771064603,133.19,185.08,185.05,8.2741]
[1755771065001,133.04,185.08,185.03,5.4047]
[1755771065315,0.15,185.07,185.04,2.87]
[1755771065503,0.15,185.07,185.04,8.2744]
[1755771065810,0.15,185.07,185.0,4.49471668]
[1755771065811,2.34834366,185.07,185.02,2.87]
[1755771066006,0.15,185.02,184.99,2.87]
[1755771066208,0.15,185.02,184.97,9.90111668]
[1755771066209,133.04,185.02,184.97,5.4064]
[1755771066409,0.15,185.01,184.97,8.2764]
[1755771066703,133.04,185.02,184.97,2.87]
[1755771066909,133.04,185.05,185.0,2.87]
[1755771067211,133.19,185.05,185.01,2.87]
[1755771067410,133.19,185.05,185.02,5.4048]
[1755771067611,133.19,185.05,185.02,8.2748]
[1755771068608,0.15,185.1,184.99,4.49471668]
[1755771068810,118.88760832,185.13,185.04,2.34834366]
[1755771069109,251.92760832,185.13,185.05,2.87]
[1755771069314,251.92760832,185.13,185.09,5.4028]
[1755771069509,251.92760832,185.13,185.09,8.2728]
[1755771070414,251.92760832,185.13,185.1,8.2727]
[1755771071818,251.92760832,185.13,185.1,5.4027]
[1755771072116,251.77760832,185.13,185.09,5.4029]
[1755771072312,0.15,185.11,185.04,9.71306034]
[1755771072617,0.15,185.11,185.07,5.4036]
[1755771072819,0.15,185.1,185.07,5.4036]
[1755771073716,0.15,185.08,185.02,4.49471668]
[1755771073916,133.17,185.08,185.01,2.87]
[1755771074416,133.17,185.08,185.05,5.4041]
[1755771075823,133.17,185.08,185.01,2.87]
[1755771076122,133.17,185.08,185.01,7.36471668]
[1755771076513,133.17,185.08,185.06,5.4036]
[1755771078816,133.02,185.08,185.04,5.4043]
[1755771079124,0.14,185.05,185.04,5.4043]
[1755771079516,133.02,185.08,185.04,5.4043]
[1755771079717,0.14,185.07,185.04,5.4043]
[1755771080019,0.14,185.07,185.05,5.4041]
[1755771080824,0.14,185.07,185.06,5.4039]
[1755771083424,133.02,185.08,185.06,5.4039]
[1755771083921,133.02,185.08,185.07,5.4036]
[1755771084434,133.02,185.08,185.06,5.4038]
[1755771085728,133.16,185.08,185.06,5.4038]
[1755771088735,133.02,185.08,185.07,5.4036]
[1755771088928,133.14,185.11,185.07,2.98]
[1755771089533,0.14,185.1,185.08,5.4033]
[1755771089734,118.73760832,185.13,185.03,2.98]
[1755771089938,133.0,185.12,185.04,2.98]
[1755771090132,133.14,185.12,185.07,5.4035]
[1755771090334,133.0,185.12,185.07,5.4035]
[1755771090533,0.14,185.1,185.07,5.4035]
[1755771090833,0.14,185.1,185.08,5.4033]
[1755771091740,0.14,185.1,185.07,5.4035]
[1755771092533,0.14,185.1,185.07,8.3835]
[1755771094247,0.14,185.1,185.07,2.98]
[1755771094843,2.48834366,185.09,185.03,2.98]
[1755771095039,132.98,185.08,185.01,2.98]
[1755771096140,132.98,185.08,185.05,5.4041]
[1755771096341,133.12,185.08,185.05,5.4041]
[1755771096643,133.12,185.08,185.05,8.3841]
[1755771098640,133.12,185.08,185.06,5.4038]
[1755771099737,133.12,185.08,184.98,6.00789852]
[1755771099738,132.98,185.08,185.07,5.4036]
[1755771099949,0.14,185.11,185.07,8.3836]
[1755771099950,132.96,185.11,185.07,8.3836]
[1755771100250,0.14,185.1,185.07,8.3836]
[1755771101042,0.14,185.09,185.07,5.4036]
[1755771102547,121.08595198,185.13,185.08,5.4033]
[1755771102746,0.14,185.12,185.09,2.98]
[1755771104553,0.14,185.12,185.09,8.3829]
[1755771104951,2.34834366,185.1,185.02,2.98]
[1755771105150,2.48834366,185.1,185.02,2.98]
[1755771105547,2.48834366,185.1,185.04,5.4043]
[1755771105744,2.48834366,185.1,185.02,2.98]
[1755771106553,2.48834366,185.1,185.04,5.4043]
[1755771108156,2.48834366,185.1,185.03,5.4046]
[1755771108346,2.34834366,185.07,185.03,5.4046]
[1755771108551,0.14,185.06,185.03,5.4046]
[1755771109454,0.14,185.06,185.03,8.3846]
[1755771109653,2.34834366,185.07,185.04,5.4044]
[1755771109852,2.48834366,185.09,185.05,2.98]
[1755771110057,0.14,185.09,185.06,2.98]
[1755771110559,2.48834366,185.1,185.06,2.98]
[1755771110857,0.14,185.08,185.03,2.98]
[1755771111051,0.14,185.08,185.04,2.98]
[1755771111558,0.14,185.08,185.05,5.4041]
[1755771111958,2.34834366,185.1,185.06,2.98]
[1755771112357,2.48834366,185.1,185.06,2.98]
[1755771112858,2.48834366,185.1,185.07,2.81]
[1755771114961,2.34834366,185.1,185.02,2.81]
[1755771115163,2.34834366,185.12,185.03,7.30471668]
[1755771115362,2.34834366,185.12,185.04,2.81]
[1755771115863,2.49834366,185.12,185.04,2.81]
[1755771116159,2.49834366,185.12,185.0,6.00789852]
[1755771116160,2.34834366,185.15,185.06,2.81]
[1755771116563,0.15,185.14,185.08,5.4031]
[1755771117163,0.15,185.14,185.09,5.4029]
[1755771117363,0.15,185.14,185.11,2.81]
[1755771117866,132.92,185.19,185.12,2.81]
[1755771117867,0.15,185.16,185.12,2.81]
[1755771118056,2.49834366,185.15,185.12,2.81]
[1755771118362,2.49834366,185.15,185.06,2.81]
[1755771119461,2.49834366,185.15,185.11,2.81]
[1755771119668,2.49834366,185.15,185.1,2.81]
[1755771119863,2.49834366,185.15,185.12,2.81]
[1755771120259,2.34834366,185.15,185.06,4.49471668]
[1755771120459,2.34834366,185.18,185.09,2.81]
[1755771120664,2.49834366,185.18,185.09,2.81]
[1755771120860,2.49834366,185.18,185.12,5.4021]
[1755771121476,0.15,185.13,185.07,2.81]
[1755771121680,2.49834366,185.1,185.03,2.81]
[1755771122276,2.34834366,185.08,185.02,4.49471668]
[1755771122581,0.15,185.07,185.0,7.30471668]
[1755771122781,2.34834366,185.08,185.03,5.4047]
[1755771123082,2.34834366,185.08,185.04,2.81]
[1755771123580,2.49834366,185.08,185.04,2.81]
[1755771123978,2.49834366,185.08,185.04,8.2143]
[1755771124279,2.49834366,185.08,185.04,2.81]
[1755771124674,0.15,185.07,184.99,7.30471668]
[1755771124883,2.34834366,185.05,184.99,7.30471668]
[1755771125572,8.35679588,185.13,184.99,2.81]
[1755771125573,0.15,185.02,184.99,2.81]
[1755771125774,0.15,185.0,184.97,2.81]
[1755771125975,0.15,185.0,184.94,7.30471668]
[1755771126276,0.15,185.0,184.94,2.81]
[1755771126574,0.15,185.0,184.92,4.49471668]
[1755771126773,0.15,185.0,184.92,2.81]
[1755771127076,2.34834366,184.98,184.92,2.81]
[1755771127675,2.49834366,184.98,184.92,2.81]
[1755771128680,2.49834366,184.98,184.92,8.2179]
[1755771129579,0.15,184.97,184.93,5.4076]
[1755771129879,0.15,184.97,184.87,4.49471668]
[1755771130081,0.15,184.97,184.93,2.81]
[1755771130683,0.15,184.97,184.94,5.4073]
[1755771130880,0.15,184.97,184.94,8.2173]
[1755771132390,0.15,184.97,184.94,5.4073]
[1755771132688,0.15,184.97,184.95,5.4071]
[1755771133088,0.15,184.97,184.91,2.81]
[1755771133387,0.15,184.97,184.94,5.4071]
[1755771133690,0.15,184.97,184.94,8.2171]
[1755771134386,0.15,184.97,184.94,2.81]
[1755771135490,0.15,184.97,184.94,8.2173]
[1755771135790,2.34834366,184.98,184.96,2.81]
[1755771136796,0.15,185.0,184.9,2.34834366]